[Event "Late-Titled-Tuesday-Blitz-June-25-2024"]
[Site "Chess.com"]
[Date "2024.06.25"]
[Round "4"]
[White "chesspilot01"]
[Black "ErikRonka"]
[Result "0-1"]
[WhiteElo "2321"]
[BlackElo "2502"]
[TimeControl "180+1"]
[EndTime "14:37:44 PDT"]
[Termination "ErikRonka won by resignation"]

1. Nf3 {[%clk 0:03:00.9]} 1... Nf6 {[%clk 0:02:57.6]} 2. c4 {[%clk 0:02:54.7]}
2... g6 {[%clk 0:02:58.5]} 3. Nc3 {[%clk 0:02:53.6]} 3... Bg7 {[%clk 0:02:59.4]}
4. e4 {[%clk 0:02:52.5]} 4... d6 {[%clk 0:02:59.4]} 5. d4 {[%clk 0:02:51.8]}
5... O-O {[%clk 0:03:00]} 6. Be2 {[%clk 0:02:51.4]} 6... e5 {[%clk 0:03:00.5]}
7. dxe5 {[%clk 0:02:48.7]} 7... dxe5 {[%clk 0:03:00.4]} 8. Qxd8 {[%clk
0:02:48.8]} 8... Rxd8 {[%clk 0:03:01.3]} 9. Bg5 {[%clk 0:02:48.7]} 9... c6
{[%clk 0:02:42.5]} 10. O-O {[%clk 0:02:47.8]} 10... Re8 {[%clk 0:02:33]} 11.
Rad1 {[%clk 0:02:41.4]} 11... Na6 {[%clk 0:02:27.6]} 12. Rd6 {[%clk 0:02:26.9]}
12... Nd7 {[%clk 0:02:04.4]} 13. Rfd1 {[%clk 0:02:24.8]} 13... Nf8 {[%clk
0:02:03.7]} 14. Bf6 {[%clk 0:01:55.6]} 14... Bg4 {[%clk 0:01:17.5]} 15. Bxg7
{[%clk 0:01:33.9]} 15... Kxg7 {[%clk 0:01:18.4]} 16. h3 {[%clk 0:01:25.3]} 16...
Bxf3 {[%clk 0:01:18.1]} 17. Bxf3 {[%clk 0:01:25.5]} 17... Ne6 {[%clk 0:01:14.6]}
18. Bg4 {[%clk 0:01:24.5]} 18... Nd4 {[%clk 0:01:01.3]} 19. Ne2 {[%clk
0:00:39.5]} 19... Nxe2+ {[%clk 0:00:57]} 20. Bxe2 {[%clk 0:00:38.1]} 20... Nc5
{[%clk 0:00:57.9]} 21. Bf3 {[%clk 0:00:21]} 21... a5 {[%clk 0:00:57.3]} 22. a3
{[%clk 0:00:15.2]} 22... a4 {[%clk 0:00:56.9]} 23. Kf1 {[%clk 0:00:14.7]} 23...
Kf8 {[%clk 0:00:33.1]} 24. Ke2 {[%clk 0:00:13.9]} 24... Ke7 {[%clk 0:00:33.7]}
25. Ke3 {[%clk 0:00:11.2]} 25... Red8 {[%clk 0:00:30.8]} 26. Rxd8 {[%clk
0:00:10.2]} 26... Rxd8 {[%clk 0:00:31.7]} 27. Rxd8 {[%clk 0:00:09.9]} 27... Kxd8
{[%clk 0:00:32.6]} 28. Bd1 {[%clk 0:00:09.9]} 28... Kc7 {[%clk 0:00:23.2]} 29.
Bc2 {[%clk 0:00:09.2]} 29... b5 {[%clk 0:00:20.5]} 30. cxb5 {[%clk 0:00:08.1]}
30... cxb5 {[%clk 0:00:21.4]} 31. g3 {[%clk 0:00:04.7]} 31... Kc6 {[%clk
0:00:21.1]} 32. f4 {[%clk 0:00:04.2]} 32... f6 {[%clk 0:00:21.7]} 33. g4 {[%clk
0:00:02.3]} 33... Ne6 {[%clk 0:00:18.2]} 34. fxe5 {[%clk 0:00:02]} 34... fxe5
{[%clk 0:00:19.1]} 35. h4 {[%clk 0:00:02.3]} 35... Kc5 {[%clk 0:00:19.2]} 36.
Bd3 {[%clk 0:00:02.3]} 36... Nd4 {[%clk 0:00:19.5]} 37. Kd2 {[%clk 0:00:01.8]}
37... Nf3+ {[%clk 0:00:19.3]} 38. Ke3 {[%clk 0:00:02.1]} 38... Nxh4 {[%clk
0:00:20.2]} 39. Kf2 {[%clk 0:00:02.4]} 39... g5 {[%clk 0:00:19.9]} 40. Kg3
{[%clk 0:00:02.6]} 40... Ng6 {[%clk 0:00:19.8]} 41. Bf1 {[%clk 0:00:02.8]} 41...
Nf4 {[%clk 0:00:20]} 42. Kf3 {[%clk 0:00:03.2]} 42... Ne6 {[%clk 0:00:17.5]} 43.
Ke3 {[%clk 0:00:03.4]} 43... Nd4 {[%clk 0:00:18.4]} 44. Kd3 {[%clk 0:00:03.7]}
44... b4 {[%clk 0:00:14.7]} 45. Ke3 {[%clk 0:00:02.7]} 45... bxa3 {[%clk
0:00:14.6]} 46. bxa3 {[%clk 0:00:02.4]} 46... Nc2+ {[%clk 0:00:15.3]} 47. Kd3
{[%clk 0:00:02.9]} 47... Nxa3 {[%clk 0:00:16.2]} 48. Kc3 {[%clk 0:00:03.5]}
48... Nb5+ {[%clk 0:00:16.1]} 49. Kb2 {[%clk 0:00:03.4]} 49... Nd6 {[%clk
0:00:15.4]} 50. Bd3 {[%clk 0:00:03]} 50... Kd4 {[%clk 0:00:15.2]} 51. Bc2 {[%clk
0:00:03.5]} 51... Nxe4 {[%clk 0:00:15.6]} 52. Bxa4 {[%clk 0:00:04.2]} 52... Nf2
{[%clk 0:00:15]} 53. Bc2 {[%clk 0:00:04.2]} 53... h6 {[%clk 0:00:14.2]} 0-1

[Event "Late-Titled-Tuesday-Blitz-June-25-2024"]
[Site "Chess.com"]
[Date "2024.06.25"]
[Round "4"]
[White "CoachVadim"]
[Black "sergeikim"]
[Result "0-1"]
[WhiteElo "2401"]
[BlackElo "2600"]
[TimeControl "180+1"]
[EndTime "14:37:46 PDT"]
[Termination "sergeikim won on time"]

1. Nf3 {[%clk 0:03:00.9]} 1... Nf6 {[%clk 0:02:59.9]} 2. g3 {[%clk 0:03:01.1]}
2... g6 {[%clk 0:03:00.2]} 3. Bg2 {[%clk 0:03:01.5]} 3... Bg7 {[%clk 0:03:00.6]}
4. O-O {[%clk 0:03:01.7]} 4... O-O {[%clk 0:03:00.8]} 5. c4 {[%clk 0:03:02.4]}
5... d6 {[%clk 0:03:01.2]} 6. Nc3 {[%clk 0:03:01.6]} 6... e5 {[%clk 0:03:01]} 7.
b4 {[%clk 0:02:59.5]} 7... Nh5 {[%clk 0:02:59.7]} 8. d4 {[%clk 0:02:57.6]} 8...
exd4 {[%clk 0:02:59]} 9. Nxd4 {[%clk 0:02:58.5]} 9... Re8 {[%clk 0:02:56.8]} 10.
Bb2 {[%clk 0:02:55.8]} 10... Nd7 {[%clk 0:02:55.7]} 11. e3 {[%clk 0:02:34.8]}
11... Ne5 {[%clk 0:02:44.8]} 12. Qb3 {[%clk 0:02:22.6]} 12... Nd3 {[%clk
0:02:12.1]} 13. Ba3 {[%clk 0:02:09.5]} 13... a5 {[%clk 0:02:06]} 14. bxa5 {[%clk
0:01:57.4]} 14... Nc5 {[%clk 0:01:58.8]} 15. Bxc5 {[%clk 0:01:47.7]} 15... dxc5
{[%clk 0:01:58.2]} 16. Ndb5 {[%clk 0:01:48.3]} 16... c6 {[%clk 0:01:55.2]} 17.
Rad1 {[%clk 0:01:48.8]} 17... Qxa5 {[%clk 0:01:54.9]} 18. Nd6 {[%clk 0:01:47]}
18... Rd8 {[%clk 0:01:47.3]} 19. Nce4 {[%clk 0:01:39.5]} 19... Qxa2 {[%clk
0:01:39.3]} 20. Qxa2 {[%clk 0:01:11.8]} 20... Rxa2 {[%clk 0:01:38.6]} 21. Nxc5
{[%clk 0:01:11.4]} 21... b6 {[%clk 0:01:29.9]} 22. Nxc8 {[%clk 0:00:52.1]} 22...
Rxc8 {[%clk 0:01:26.1]} 23. Ne4 {[%clk 0:00:46.4]} 23... b5 {[%clk 0:01:10.4]}
24. Nd6 {[%clk 0:00:41.5]} 24... Rb8 {[%clk 0:01:08.9]} 25. Bxc6 {[%clk
0:00:38.7]} 25... b4 {[%clk 0:01:09.1]} 26. Bd5 {[%clk 0:00:32.2]} 26... b3
{[%clk 0:01:01.8]} 27. Nxf7 {[%clk 0:00:27.4]} 27... Nf6 {[%clk 0:00:57.3]} 28.
Be6 {[%clk 0:00:15.9]} 28... Ra6 {[%clk 0:00:51.6]} 29. Ng5+ {[%clk 0:00:12]}
29... Kf8 {[%clk 0:00:50.9]} 30. Bd5 {[%clk 0:00:10.2]} 30... Nxd5 {[%clk
0:00:45]} 31. cxd5 {[%clk 0:00:11.1]} 31... Ke7 {[%clk 0:00:44]} 32. Ne6 {[%clk
0:00:10.1]} 32... Bf6 {[%clk 0:00:40.8]} 33. Nc5 {[%clk 0:00:09.1]} 33... Rd6
{[%clk 0:00:35]} 34. Rb1 {[%clk 0:00:05.4]} 34... Rxd5 {[%clk 0:00:34]} 35. Rxb3
{[%clk 0:00:05.3]} 35... Rxb3 {[%clk 0:00:31.1]} 36. Nxb3 {[%clk 0:00:06.2]}
36... h5 {[%clk 0:00:31.8]} 37. Rc1 {[%clk 0:00:05.3]} 37... h4 {[%clk
0:00:29.3]} 38. Kg2 {[%clk 0:00:05.2]} 38... Rb5 {[%clk 0:00:28.9]} 39. Nd4
{[%clk 0:00:04.9]} 39... Rb2 {[%clk 0:00:28.2]} 40. Rc7+ {[%clk 0:00:03.2]}
40... Kd6 {[%clk 0:00:26.3]} 41. Rc6+ {[%clk 0:00:03.2]} 41... Ke7 {[%clk
0:00:25.6]} 42. Nf3 {[%clk 0:00:03.1]} 42... h3+ {[%clk 0:00:24.2]} 43. Kxh3
{[%clk 0:00:03]} 43... Rxf2 {[%clk 0:00:24]} 44. Ne1 {[%clk 0:00:01.1]} 44...
Kf7 {[%clk 0:00:20.6]} 45. Ng2 {[%clk 0:00:01.6]} 45... g5 {[%clk 0:00:19.9]}
46. Rc4 {[%clk 0:00:01]} 46... Ke6 {[%clk 0:00:19.2]} 47. Ne1 {[%clk 0:00:01.2]}
47... Kf5 {[%clk 0:00:18.2]} 0-1

[Event "Late-Titled-Tuesday-Blitz-June-25-2024"]
[Site "Chess.com"]
[Date "2024.06.25"]
[Round "4"]
[White "SebbyMeister"]
[Black "ccccvhhhj"]
[Result "0-1"]
[WhiteElo "2243"]
[BlackElo "2468"]
[TimeControl "180+1"]
[EndTime "14:37:50 PDT"]
[Termination "ccccvhhhj won on time"]

1. e4 {[%clk 0:03:00.9]} 1... e5 {[%clk 0:02:59.6]} 2. Nf3 {[%clk 0:03:01.2]}
2... Nc6 {[%clk 0:03:00.2]} 3. Bb5 {[%clk 0:03:01.3]} 3... Nge7 {[%clk
0:03:00.3]} 4. O-O {[%clk 0:02:59.7]} 4... Ng6 {[%clk 0:03:00.2]} 5. c3 {[%clk
0:02:57.8]} 5... Be7 {[%clk 0:02:58.2]} 6. d4 {[%clk 0:02:58.2]} 6... O-O {[%clk
0:02:57.8]} 7. Be3 {[%clk 0:02:55.2]} 7... d6 {[%clk 0:02:56.3]} 8. h3 {[%clk
0:02:54.4]} 8... Kh8 {[%clk 0:02:52.9]} 9. dxe5 {[%clk 0:02:46.7]} 9... Ncxe5
{[%clk 0:02:51.2]} 10. Nxe5 {[%clk 0:02:46.9]} 10... dxe5 {[%clk 0:02:43.8]} 11.
Nd2 {[%clk 0:02:42]} 11... c6 {[%clk 0:02:33.1]} 12. Ba4 {[%clk 0:02:37.1]}
12... f5 {[%clk 0:02:33]} 13. exf5 {[%clk 0:02:35.8]} 13... Bxf5 {[%clk
0:02:31.2]} 14. Bc2 {[%clk 0:02:36.3]} 14... Bg5 {[%clk 0:02:07]} 15. Bxf5
{[%clk 0:02:33.9]} 15... Rxf5 {[%clk 0:02:07.9]} 16. Ne4 {[%clk 0:02:33.1]}
16... Bxe3 {[%clk 0:02:05.6]} 17. Qxd8+ {[%clk 0:02:23.7]} 17... Rxd8 {[%clk
0:02:06.5]} 18. fxe3 {[%clk 0:02:23.8]} 18... Rxf1+ {[%clk 0:02:05.5]} 19. Kxf1
{[%clk 0:02:23.4]} 19... Kg8 {[%clk 0:02:05.1]} 20. Ke2 {[%clk 0:02:22.6]} 20...
Ne7 {[%clk 0:01:54.1]} 21. c4 {[%clk 0:02:08.8]} 21... h6 {[%clk 0:01:52.8]} 22.
Rf1 {[%clk 0:02:01]} 22... a5 {[%clk 0:01:34]} 23. g4 {[%clk 0:01:46.7]} 23...
a4 {[%clk 0:01:18.2]} 24. Nc5 {[%clk 0:01:36.8]} 24... b5 {[%clk 0:01:13.4]} 25.
Rc1 {[%clk 0:01:32]} 25... Rc8 {[%clk 0:00:51.3]} 26. Ne4 {[%clk 0:01:28]} 26...
Rb8 {[%clk 0:00:38.7]} 27. cxb5 {[%clk 0:01:22.1]} 27... Rxb5 {[%clk 0:00:39.6]}
28. Rc2 {[%clk 0:01:15.6]} 28... Nd5 {[%clk 0:00:40.1]} 29. Kf3 {[%clk
0:01:09.7]} 29... Rb8 {[%clk 0:00:35.1]} 30. Nc5 {[%clk 0:01:03.5]} 30... Nb4
{[%clk 0:00:31.5]} 31. Rc4 {[%clk 0:00:33.7]} 31... Nxa2 {[%clk 0:00:26.5]} 32.
Nd3 {[%clk 0:00:33.7]} 32... Ra8 {[%clk 0:00:24.1]} 33. Rxc6 {[%clk 0:00:31.2]}
33... a3 {[%clk 0:00:23.4]} 34. bxa3 {[%clk 0:00:22.6]} 34... Rxa3 {[%clk
0:00:24.3]} 35. Ke4 {[%clk 0:00:20.4]} 35... Nc3+ {[%clk 0:00:20.2]} 36. Kxe5
{[%clk 0:00:20.3]} 36... Nb5 {[%clk 0:00:20.3]} 37. Rc8+ {[%clk 0:00:17.7]}
37... Kh7 {[%clk 0:00:20.1]} 38. Nf4 {[%clk 0:00:10.6]} 38... Rxe3+ {[%clk
0:00:21]} 39. Kd5 {[%clk 0:00:10.5]} 39... Rf3 {[%clk 0:00:15.7]} 40. Ne6 {[%clk
0:00:11]} 40... Rxh3 {[%clk 0:00:13.5]} 41. Nf8+ {[%clk 0:00:10.4]} 41... Kg8
{[%clk 0:00:13.1]} 42. Ke6 {[%clk 0:00:05.5]} 42... Re3+ {[%clk 0:00:12.4]} 43.
Kd7 {[%clk 0:00:05.5]} 43... Kf7 {[%clk 0:00:09.5]} 44. Nh7 {[%clk 0:00:02.1]}
44... Rd3+ {[%clk 0:00:07.6]} 45. Kc6 {[%clk 0:00:02.4]} 45... Nd4+ {[%clk
0:00:08]} 46. Kb7 {[%clk 0:00:02.1]} 46... Rb3+ {[%clk 0:00:07.8]} 47. Ka8
{[%clk 0:00:02.1]} 47... Ne6 {[%clk 0:00:04.6]} 0-1

[Event "Late-Titled-Tuesday-Blitz-June-25-2024"]
[Site "Chess.com"]
[Date "2024.06.25"]
[Round "4"]
[White "anasta10"]
[Black "hansen"]
[Result "1/2-1/2"]
[WhiteElo "2635"]
[BlackElo "2980"]
[TimeControl "180+1"]
[EndTime "14:37:53 PDT"]
[Termination "Game drawn by repetition"]

1. Nf3 {[%clk 0:03:00.4]} 1... d5 {[%clk 0:03:00.2]} 2. d4 {[%clk 0:02:59]} 2...
Nf6 {[%clk 0:03:00.5]} 3. c4 {[%clk 0:02:58.7]} 3... e6 {[%clk 0:02:58.9]} 4.
Nc3 {[%clk 0:02:58.7]} 4... Bb4 {[%clk 0:02:58]} 5. g3 {[%clk 0:02:57.4]} 5...
O-O {[%clk 0:02:47.6]} 6. Bg2 {[%clk 0:02:56.2]} 6... dxc4 {[%clk 0:02:34.3]} 7.
O-O {[%clk 0:02:55.9]} 7... a6 {[%clk 0:02:23.8]} 8. Ne5 {[%clk 0:02:47.7]} 8...
c5 {[%clk 0:02:23.1]} 9. dxc5 {[%clk 0:02:44.5]} 9... Qc7 {[%clk 0:01:55.6]} 10.
Qd6 {[%clk 0:02:19.4]} 10... Qxc5 {[%clk 0:01:52.8]} 11. Qxc5 {[%clk 0:02:19.6]}
11... Bxc5 {[%clk 0:01:53.7]} 12. Nxc4 {[%clk 0:02:20.2]} 12... Nbd7 {[%clk
0:01:24.6]} 13. Bf4 {[%clk 0:02:14.8]} 13... Ra7 {[%clk 0:01:17.4]} 14. Bd6
{[%clk 0:01:56.1]} 14... Bxd6 {[%clk 0:00:58.5]} 15. Nxd6 {[%clk 0:01:57]} 15...
b5 {[%clk 0:00:58.6]} 16. Rfd1 {[%clk 0:01:47.4]} 16... Nb6 {[%clk 0:00:53]} 17.
Rac1 {[%clk 0:01:35.5]} 17... Bd7 {[%clk 0:00:48.1]} 18. Nce4 {[%clk 0:01:30.5]}
18... Nxe4 {[%clk 0:00:47.6]} 19. Bxe4 {[%clk 0:01:31.4]} 19... Rb8 {[%clk
0:00:31.7]} 20. b3 {[%clk 0:01:20.8]} 20... g6 {[%clk 0:00:29.5]} 21. Rc3 {[%clk
0:01:04.6]} 21... Kf8 {[%clk 0:00:25.4]} 22. Bf3 {[%clk 0:00:51.6]} 22... Ke7
{[%clk 0:00:23.3]} 23. Ne4 {[%clk 0:00:36.2]} 23... Nd5 {[%clk 0:00:23.5]} 24.
Rcc1 {[%clk 0:00:35.7]} 24... b4 {[%clk 0:00:23.3]} 25. Rd2 {[%clk 0:00:26.4]}
25... a5 {[%clk 0:00:21.7]} 26. Nc5 {[%clk 0:00:19.3]} 26... Nc3 {[%clk
0:00:21.2]} 27. Ne4 {[%clk 0:00:18.3]} 27... Rc7 {[%clk 0:00:16.1]} 28. Nxc3
{[%clk 0:00:08]} 28... bxc3 {[%clk 0:00:15.4]} 29. Rd4 {[%clk 0:00:08]} 29... e5
{[%clk 0:00:09]} 30. Rc4 {[%clk 0:00:04.7]} 30... Rxc4 {[%clk 0:00:09.4]} 31.
bxc4 {[%clk 0:00:05.6]} 31... Bh3 {[%clk 0:00:10]} 32. Bg2 {[%clk 0:00:05]}
32... c2 {[%clk 0:00:10.2]} 33. Be4 {[%clk 0:00:02.6]} 33... Rb2 {[%clk
0:00:05.9]} 34. Bxc2 {[%clk 0:00:02.8]} 34... Rxa2 {[%clk 0:00:06.3]} 35. f3
{[%clk 0:00:03.4]} 35... f5 {[%clk 0:00:05.8]} 36. Kf2 {[%clk 0:00:03.5]} 36...
Kd6 {[%clk 0:00:06.4]} 37. Ke3 {[%clk 0:00:03.9]} 37... Kc5 {[%clk 0:00:06.8]}
38. Bd3 {[%clk 0:00:04.3]} 38... Rb2 {[%clk 0:00:02.7]} 39. Ra1 {[%clk
0:00:04.4]} 39... Kb4 {[%clk 0:00:02.3]} 40. c5 {[%clk 0:00:05.1]} 40... g5
{[%clk 0:00:02.2]} 41. c6 {[%clk 0:00:05.3]} 41... f4+ {[%clk 0:00:02.8]} 42.
gxf4 {[%clk 0:00:05.6]} 42... exf4+ {[%clk 0:00:03.7]} 43. Kd4 {[%clk
0:00:05.9]} 43... a4 {[%clk 0:00:04.4]} 44. c7 {[%clk 0:00:04.4]} 44... a3
{[%clk 0:00:05]} 45. Ke5 {[%clk 0:00:04.7]} 45... Bc8 {[%clk 0:00:04.1]} 46. Kd6
{[%clk 0:00:04.8]} 46... a2 {[%clk 0:00:04.6]} 47. Ke7 {[%clk 0:00:04.9]} 47...
Ka3 {[%clk 0:00:01]} 48. Kd8 {[%clk 0:00:05.2]} 48... Bb7 {[%clk 0:00:01.8]} 49.
Be4 {[%clk 0:00:04.4]} 49... Ba6 {[%clk 0:00:01.9]} 50. Bd3 {[%clk 0:00:03.3]}
50... Bb7 {[%clk 0:00:02.1]} 51. Be4 {[%clk 0:00:03.9]} 51... Ba6 {[%clk
0:00:02.7]} 52. Bd3 {[%clk 0:00:04.5]} 52... Bb7 {[%clk 0:00:03.4]} 1/2-1/2

[Event "Late-Titled-Tuesday-Blitz-June-25-2024"]
[Site "Chess.com"]
[Date "2024.06.25"]
[Round "4"]
[White "Aryan_Tamadon"]
[Black "ReinisUz"]
[Result "0-1"]
[WhiteElo "2632"]
[BlackElo "2458"]
[TimeControl "180+1"]
[EndTime "14:37:55 PDT"]
[Termination "ReinisUz won on time"]

1. Nf3 {[%clk 0:03:00.9]} 1... c5 {[%clk 0:02:59]} 2. b3 {[%clk 0:02:59.7]} 2...
Nc6 {[%clk 0:02:58.7]} 3. Bb2 {[%clk 0:03:00.2]} 3... Nf6 {[%clk 0:02:59.1]} 4.
e3 {[%clk 0:03:00]} 4... g6 {[%clk 0:02:58.2]} 5. d4 {[%clk 0:02:56.4]} 5...
cxd4 {[%clk 0:02:57.7]} 6. exd4 {[%clk 0:02:57.3]} 6... d5 {[%clk 0:02:58.1]} 7.
Bd3 {[%clk 0:02:57]} 7... Bg7 {[%clk 0:02:58.1]} 8. h3 {[%clk 0:02:57.5]} 8...
O-O {[%clk 0:02:58.2]} 9. O-O {[%clk 0:02:57.9]} 9... Ne4 {[%clk 0:02:56.1]} 10.
Re1 {[%clk 0:02:56.2]} 10... f5 {[%clk 0:02:56]} 11. c4 {[%clk 0:02:54.2]} 11...
e6 {[%clk 0:02:55.1]} 12. Nbd2 {[%clk 0:02:39.1]} 12... Qb6 {[%clk 0:02:52.3]}
13. c5 {[%clk 0:02:29.8]} 13... Qc7 {[%clk 0:02:51.7]} 14. a3 {[%clk 0:02:28.4]}
14... Nxc5 {[%clk 0:02:32.6]} 15. Bb5 {[%clk 0:01:58.8]} 15... Ne4 {[%clk
0:02:31.1]} 16. b4 {[%clk 0:01:58.3]} 16... Qb6 {[%clk 0:02:29.5]} 17. Bxc6
{[%clk 0:01:55.8]} 17... bxc6 {[%clk 0:02:30.4]} 18. Nb3 {[%clk 0:01:49.8]}
18... Ba6 {[%clk 0:02:23.6]} 19. Rc1 {[%clk 0:01:50.2]} 19... Bb5 {[%clk
0:01:47]} 20. Na5 {[%clk 0:01:47.4]} 20... Rac8 {[%clk 0:01:41.4]} 21. a4 {[%clk
0:01:39.6]} 21... Ba6 {[%clk 0:01:39.9]} 22. Ba3 {[%clk 0:01:40.3]} 22... Rfe8
{[%clk 0:01:36.8]} 23. Rc2 {[%clk 0:01:32.3]} 23... Nd6 {[%clk 0:01:23]} 24. Qc1
{[%clk 0:01:19.9]} 24... Nc4 {[%clk 0:01:21.8]} 25. Nxc4 {[%clk 0:01:19.3]}
25... Bxc4 {[%clk 0:01:22.7]} 26. Nd2 {[%clk 0:01:19.2]} 26... Bxd4 {[%clk
0:01:16.2]} 27. Nxc4 {[%clk 0:01:19.1]} 27... dxc4 {[%clk 0:01:15.3]} 28. Ree2
{[%clk 0:01:17.8]} 28... c3 {[%clk 0:01:14]} 29. h4 {[%clk 0:01:06.4]} 29... e5
{[%clk 0:01:13.4]} 30. h5 {[%clk 0:01:06.3]} 30... Kg7 {[%clk 0:01:06.1]} 31.
Qg5 {[%clk 0:01:04.7]} 31... Qd8 {[%clk 0:01:01.1]} 32. Qg3 {[%clk 0:01:00.2]}
32... Qf6 {[%clk 0:00:53.2]} 33. Bc1 {[%clk 0:00:59.4]} 33... Rb8 {[%clk
0:00:46.8]} 34. hxg6 {[%clk 0:00:42.2]} 34... Qxg6 {[%clk 0:00:37.7]} 35. Qd3
{[%clk 0:00:34.2]} 35... Rxb4 {[%clk 0:00:34.4]} 36. Rxc3 {[%clk 0:00:34.4]}
36... Bxc3 {[%clk 0:00:26.8]} 37. Qxc3 {[%clk 0:00:35.3]} 37... Re4 {[%clk
0:00:22.2]} 38. Rb2 {[%clk 0:00:33.6]} 38... Re7 {[%clk 0:00:20.3]} 39. f3
{[%clk 0:00:15.1]} 39... Rd4 {[%clk 0:00:19.1]} 40. Be3 {[%clk 0:00:15.1]} 40...
Rd1+ {[%clk 0:00:17.2]} 41. Kf2 {[%clk 0:00:15.7]} 41... Red7 {[%clk 0:00:15.2]}
42. Qxe5+ {[%clk 0:00:12]} 42... Qf6 {[%clk 0:00:12.7]} 43. Qg3+ {[%clk
0:00:11.6]} 43... Kf7 {[%clk 0:00:10.3]} 44. Re2 {[%clk 0:00:09.5]} 44... Qa1
{[%clk 0:00:07.7]} 45. Qg5 {[%clk 0:00:04.7]} 45... Rf1+ {[%clk 0:00:07.8]} 46.
Kg3 {[%clk 0:00:05.2]} 46... Qg7 {[%clk 0:00:07.8]} 47. Kf4 {[%clk 0:00:02.8]}
47... Qxg5+ {[%clk 0:00:06.1]} 48. Kxg5 {[%clk 0:00:03.7]} 48... Rd5 {[%clk
0:00:05.1]} 49. Bf4 {[%clk 0:00:01.5]} 49... Ra1 {[%clk 0:00:04]} 0-1

[Event "Late-Titled-Tuesday-Blitz-June-25-2024"]
[Site "Chess.com"]
[Date "2024.06.25"]
[Round "4"]
[White "Jarming"]
[Black "subham777"]
[Result "1-0"]
[WhiteElo "2710"]
[BlackElo "2533"]
[TimeControl "180+1"]
[EndTime "14:37:56 PDT"]
[Termination "Jarming won on time"]

1. d4 {[%clk 0:03:00.9]} 1... d5 {[%clk 0:02:59.5]} 2. c4 {[%clk 0:02:59.5]}
2... e6 {[%clk 0:02:56.8]} 3. g3 {[%clk 0:02:58.7]} 3... Nf6 {[%clk 0:02:55.5]}
4. Bg2 {[%clk 0:02:59]} 4... Be7 {[%clk 0:02:55.5]} 5. Nf3 {[%clk 0:02:58.6]}
5... O-O {[%clk 0:02:56.2]} 6. O-O {[%clk 0:02:59.5]} 6... Ne4 {[%clk
0:02:53.6]} 7. Nc3 {[%clk 0:02:58.6]} 7... c6 {[%clk 0:02:53.4]} 8. Ne5 {[%clk
0:02:55]} 8... f5 {[%clk 0:02:53]} 9. Qb3 {[%clk 0:02:38.1]} 9... Qb6 {[%clk
0:02:42.8]} 10. Be3 {[%clk 0:02:19.4]} 10... Nd7 {[%clk 0:02:33.9]} 11. Nd3
{[%clk 0:02:07.4]} 11... Ndf6 {[%clk 0:02:27.2]} 12. f3 {[%clk 0:02:00.9]} 12...
Nxc3 {[%clk 0:02:23.3]} 13. bxc3 {[%clk 0:02:01.8]} 13... Qxb3 {[%clk 0:02:04]}
14. axb3 {[%clk 0:02:00.1]} 14... a6 {[%clk 0:02:03.8]} 15. Ra2 {[%clk
0:01:56.5]} 15... Bd6 {[%clk 0:01:58.3]} 16. Rb1 {[%clk 0:01:53.3]} 16... Bd7
{[%clk 0:01:54.9]} 17. Bf4 {[%clk 0:01:49.8]} 17... Bxf4 {[%clk 0:01:50.9]} 18.
gxf4 {[%clk 0:01:50.7]} 18... Be8 {[%clk 0:01:48.5]} 19. Nc5 {[%clk 0:01:49.9]}
19... Ra7 {[%clk 0:01:32.1]} 20. Nxe6 {[%clk 0:01:48.2]} 20... Rf7 {[%clk
0:01:30.7]} 21. Kf2 {[%clk 0:01:47.3]} 21... Re7 {[%clk 0:01:27.4]} 22. Nc5
{[%clk 0:01:44.2]} 22... Bf7 {[%clk 0:01:25.3]} 23. cxd5 {[%clk 0:01:33.3]}
23... Nxd5 {[%clk 0:01:22.3]} 24. Rc1 {[%clk 0:01:32.3]} 24... Nxf4 {[%clk
0:01:20.4]} 25. Bf1 {[%clk 0:01:32.4]} 25... a5 {[%clk 0:01:11.4]} 26. Rca1
{[%clk 0:01:22.4]} 26... b6 {[%clk 0:01:08.5]} 27. Nd3 {[%clk 0:01:17.9]} 27...
Nxd3+ {[%clk 0:01:07.7]} 28. exd3 {[%clk 0:01:18.8]} 28... Bxb3 {[%clk 0:01:08]}
29. Rb2 {[%clk 0:01:18.6]} 29... a4 {[%clk 0:01:02.4]} 30. h4 {[%clk 0:01:16.9]}
30... g6 {[%clk 0:00:57]} 31. f4 {[%clk 0:01:15.2]} 31... Kg7 {[%clk 0:00:54.5]}
32. Bg2 {[%clk 0:01:14.4]} 32... Rac7 {[%clk 0:00:52.4]} 33. Bf3 {[%clk
0:01:06.8]} 33... Red7 {[%clk 0:00:46.4]} 34. Be2 {[%clk 0:01:05.4]} 34... c5
{[%clk 0:00:43.2]} 35. dxc5 {[%clk 0:01:04.9]} 35... bxc5 {[%clk 0:00:43.2]} 36.
h5 {[%clk 0:01:04.9]} 36... Rd6 {[%clk 0:00:33.8]} 37. Rd2 {[%clk 0:00:59.4]}
37... Re7 {[%clk 0:00:27.2]} 38. Rb2 {[%clk 0:00:52.3]} 38... Rde6 {[%clk
0:00:24.5]} 39. Rg1 {[%clk 0:00:47.6]} 39... a3 {[%clk 0:00:17.7]} 40. Rd2
{[%clk 0:00:43.2]} 40... a2 {[%clk 0:00:16.9]} 41. Ra1 {[%clk 0:00:43.9]} 41...
Ra7 {[%clk 0:00:15.8]} 42. c4 {[%clk 0:00:39.5]} 42... Rea6 {[%clk 0:00:12.4]}
43. Rb2 {[%clk 0:00:38.8]} 43... Ra3 {[%clk 0:00:12.8]} 44. Ke3 {[%clk
0:00:37.8]} 44... Kf6 {[%clk 0:00:12.4]} 45. Kd2 {[%clk 0:00:38.2]} 45... g5
{[%clk 0:00:09.7]} 46. fxg5+ {[%clk 0:00:37.4]} 46... Kxg5 {[%clk 0:00:10.6]}
47. Kc3 {[%clk 0:00:33.8]} 47... Bd1+ {[%clk 0:00:09]} 48. Kd2 {[%clk
0:00:33.9]} 48... Bxe2 {[%clk 0:00:09.5]} 49. Kxe2 {[%clk 0:00:34.8]} 49... Re7+
{[%clk 0:00:08.5]} 50. Kd2 {[%clk 0:00:34.9]} 50... Rd7 {[%clk 0:00:09.1]} 51.
Raxa2 {[%clk 0:00:33]} 51... Rdxd3+ {[%clk 0:00:09.7]} 52. Ke2 {[%clk
0:00:33.9]} 52... Re3+ {[%clk 0:00:09.9]} 53. Kf2 {[%clk 0:00:33.5]} 53... Rxa2
{[%clk 0:00:09.2]} 54. Rxa2 {[%clk 0:00:33.5]} 54... Re4 {[%clk 0:00:06.3]} 55.
Ra7 {[%clk 0:00:30.6]} 55... Kh6 {[%clk 0:00:06.3]} 56. Rf7 {[%clk 0:00:30.1]}
56... Kxh5 {[%clk 0:00:05]} 57. Rxf5+ {[%clk 0:00:30.1]} 57... Kg4 {[%clk
0:00:04.3]} 58. Rxc5 {[%clk 0:00:31]} 58... h5 {[%clk 0:00:04.5]} 59. Rc8 {[%clk
0:00:31.1]} 59... h4 {[%clk 0:00:03.8]} 60. c5 {[%clk 0:00:32]} 60... Rc4 {[%clk
0:00:01.1]} 61. c6 {[%clk 0:00:32.3]} 1-0